[Event "Swiss Championship U14 2022"]
[Site "Biel"]
[Date "2022.07.20"]
[Round "5.5"]
[White "Gut, Lionel"]
[Black "Stoll, Arturo"]
[Result "1-0"]
[ECO "D31"]
[WhiteElo "1957"]
[BlackElo "1434"]
[Annotator "TA"]
[PlyCount "67"]
[EventDate "2022.07.18"]
[EventType "swiss"]
[EventCountry "SUI"]
[SourceTitle "playchess.com"]
[Source "ChessBase"]
[SourceQuality "1"]
[TimeControl "5400+30"]

{[%evp 11,67,16,27,-15,24,26,21,-2,14,7,14,0,55,24,24,12,93,88,83,72,74,17,62,-28,0,0,0,0,0,-91,-102,-81,-16,-19,-18,-18,0,0,0,0,7,0,2,0,8,2,137,137,213,122,116,58,221,133,125,135,670,661]} 1. d4 {[%emt 0:00:08]} d5 {[%emt 0:00:44]} 2. c4 {[%emt 0:00:06]} c6 {[%emt 0:00:05]} 3. Nc3 {[%emt 0:00:05]} e6 {[%emt 0:00:37]} 4. e4 {[%emt 0:00:16]} dxe4 {[%emt 0:00:24]} 5. Nxe4 {[%emt 0:00:05]} Bb4+ {[%emt 0:00:07]} 6. Nc3 {[%emt 0:00:04]} Nf6 {[%emt 0:01:54]} 7. Be3 {[%emt 0:03:38] D31: Queen's Gambit Declined: Semi-Slav without ...Nf6 (+ Marshall Gambit and Noteboom) and Exchange Variation lines without ...Nf6.} Nbd7 {[%emt 0:01:43]} 8. Nf3 {[%emt 0:03:09]} O-O {[%emt 0:05:46][%cal Oe6e5]} 9. Bd3 {[%emt 0:11:31] [#] The position is equal.} c5 $146 {[%emt 0:14:13]} (9... e5 $5 10. dxe5 Ng4 $11) ({Predecessor:} 9... Qa5 10. Qc2 e5 11. O-O Re8 12. Ne4 Nxe4 13. Bxe4 g6 14. Nh4 Qd8 15. Nxg6 hxg6 16. Bxg6 {0-1 (47) Biendara,M-Franco,V Ruhrgebiet 1998}) 10. O-O {[%emt 0:11:24]} cxd4 {[%emt 0:08:45]} 11. Bxd4 {[%emt 0:02:41]} Qe7 {[%emt 0:01:10]} (11... b6 $11) 12. Re1 {[%emt 0:07:49]} Rd8 {[%emt 0:03:51]} 13. a3 {[%emt 0:23:29]} Bd6 {[%emt 0:02:28]} (13... Bc5 $11) 14. Qc2 $1 $16 {[%emt 0:04:12][%cal Oc3d5]} h6 {[%emt 0:06:59]} 15. Nb5 {[%emt 0:05:46]} Bb8 {[%emt 0:00:24]} 16. Bc3 {[%emt 0:01:10] 0x0.001f23cecc07dp-1022s more active pieces.} (16. Rad1 $16) 16... Nc5 {[%emt 0:03:51]} 17. Bb4 {[%emt 0:00:19]} ({White should try} 17. Rad1 $14) 17... a5 {[%emt 0:00:43]} (17... b6 $5 {[%cal Rc8b7]}) 18. Bxc5 {[%emt 0:00:09]} Qxc5 {[%emt 0:00:02]} 19. Rad1 {[%emt 0:00:16][%cal Od3h7] Strongly threatening Bh7+!} Bd7 {[%emt 0:04:44]} 20. Qc3 {[%emt 0:11:32]} (20. Be4 $11 {keeps the balance.}) 20... Bxb5 $17 {[%emt 0:04:57]} ({Don't play} 20... Ng4 $6 21. Qc2 $11 (21. Qd4 Qxd4 22. Nbxd4 e5 $15)) 21. cxb5 {[%emt 0:00:06]} Bd6 {[%emt 0:03:33]} (21... Qxc3 $17 22. bxc3 Bd6) 22. Qxc5 {[%emt 0:03:31]} Bxc5 {[%emt 0:00:08]} 23. h3 {[%emt 0:00:06]} b6 {[%emt 0:03:10]} 24. Ne5 {[%emt 0:00:35]} Kf8 {[%emt 0:04:27]} 25. Nc6 {[%emt 0:00:37]} Rd6 {[%emt 0:01:02]} 26. Bc2 {[%emt 0:01:09]} Rxd1 {[%emt 0:02:07]} 27. Rxd1 {[%emt 0:00:39]} Ke8 {[%emt 0:00:48]} 28. Kf1 {[%emt 0:01:39]} a4 {[%emt 0:04:31] [#]} (28... Rc8 $11) 29. Bxa4 $1 $16 {[%emt 0:01:26]} Nd5 {[%emt 0:00:30] [#]} (29... Bf8 $16 30. Rd3 Bc5) 30. Bb3 {[%emt 0:00:10]} (30. Bc2 $1 $18) 30... Ne7 {[%emt 0:00:25]} 31. Bc2 {[%emt 0:00:41]} ({Better is} 31. Ne5 $16) 31... Rc8 $2 {[%emt 0:00:23]} (31... Nxc6 $1 $14 32. bxc6 Rd8) 32. Be4 {[%emt 0:00:09][%cal Bc2e4,Be4f3,Bf3h5][%mdl 32] b4 is the strong threat.} f5 {[%emt 0:00:50]} 33. Bf3 {[%emt 0:00:04] Black must now prevent b4.} Ng6 $2 {[%emt 0:01:07][%mdl 8192]} (33... Nxc6 $16 34. Bxc6+ (34. bxc6 Rd8 $16) 34... Kf8) 34. Bh5 {[%emt 0:00:16] Weighted Error Value: White=0.28 (precise) /Black=0.57} 1-0

[Event "Swiss Championship U14 2022"]
[Site "Biel"]
[Date "2022.07.20"]
[Round "5.6"]
[White "Artan, Tamir"]
[Black "Breyer, Thierry"]
[Result "1-0"]
[ECO "B20"]
[WhiteElo "1590"]
[BlackElo "1683"]
[Annotator "NA RC COMBH"]
[PlyCount "73"]
[EventDate "2022.07.18"]
[EventType "swiss"]
[EventCountry "SUI"]
[SourceTitle "playchess.com"]
[Source "ChessBase"]
[SourceQuality "1"]
[TimeControl "5400+30"]

1. e4 {[%emt 0:03:24]} c5 {[%emt 0:00:05]} 2. b3 {[%emt 0:00:03]} d6 {[%emt 0:02:30]} 3. Bb2 {[%emt 0:00:08]} Nc6 {[%emt 0:00:49]} 4. Bb5 {[%emt 0:02:46]} e5 {[%emt 0:02:14]} 5. f4 {[%emt 0:01:26]} Bd7 {[%emt 0:12:26]} 6. Bxc6 {[%emt 0:01:27]} Bxc6 {[%emt 0:00:22]} 7. d3 {[%emt 0:00:09]} Qe7 {[%emt 0:00:30]} 8. fxe5 {[%emt 0:00:30]} dxe5 {[%emt 0:00:30]} 9. Nf3 {[%emt 0:00:30]} f6 {[%emt 0:00:30]} 10. Nbd2 {[%emt 0:00:30]} O-O-O {[%emt 0:00:30]} 11. Qe2 {[%emt 0:00:30]} g6 {[%emt 0:17:58]} 12. O-O-O {[%emt 0:10:59]} Qc7 {[%emt 0:00:30]} 13. g4 {[%emt 0:00:30]} Nh6 {[%emt 0:00:30]} 14. g5 {[%emt 0:00:30]} Nf7 {[%emt 0:00:30]} 15. gxf6 {[%emt 0:00:30]} Bh6 {[%emt 0:00:30]} 16. Kb1 {[%emt 0:00:30]} Bf4 {[%emt 0:00:30]} 17. Nh4 {[%emt 0:00:30]} Kb8 {[%emt 0:00:30]} 18. Rdf1 {[%emt 0:00:30]} Bg5 {[%emt 0:00:30]} 19. Nhf3 {[%emt 0:00:30]} Bf4 {[%emt 0:00:30]} 20. Nc4 {[%emt 0:00:30]} Rhe8 {[%emt 0:00:30]} 21. Nh4 {[%emt 0:00:30]} Re6 {[%emt 0:00:30]} 22. Ng2 {[%emt 0:00:30]} Bg5 {[%emt 0:00:30]} 23. h4 {[%emt 0:00:30]} Bxf6 {[%emt 0:00:30]} 24. Rf2 {[%emt 0:00:30]} b5 {[%emt 0:00:30]} 25. Nce3 {[%emt 0:00:30]} h5 {[%emt 0:00:30]} 26. Rhf1 {[%emt 0:00:30]} Qe7 {[%emt 0:00:30]} 27. Ba3 {[%emt 0:00:30]} b4 {[%emt 0:00:30]} 28. Bb2 {[%emt 0:00:30]} Ka8 {[%emt 0:00:30]} 29. Nd5 {[%emt 0:00:30]} Bxd5 {[%emt 0:00:30]} 30. exd5 {[%emt 0:00:30]} Red6 {[%emt 0:00:30]} 31. Qe4 {[%emt 0:00:30]} Rf8 {[%emt 0:00:30]} 32. Rxf6 {[%emt 0:00:30]} Qxf6 {[%emt 0:00:30]} 33. Rxf6 {[%emt 0:00:30]} Rxf6 {[%emt 0:00:30]} 34. d6+ {[%emt 0:00:30]} Kb8 {[%emt 0:00:30]} 35. Bxe5 {[%emt 0:00:30]} Nxd6 {[%emt 0:00:30]} 36. Qc6 {[%emt 0:00:30]} Rf1+ {[%emt 0:00:30]} 37. Kb2 {[%emt 0:00:30]} 1-0

[Event "Swiss Championship U14 2022"]
[Site "Biel"]
[Date "2022.07.20"]
[Round "5.7"]
[White "Delangle, Alexander"]
[Black "Guyer, Marlon"]
[Result "1-0"]
[ECO "C47"]
[WhiteElo "1612"]
[BlackElo "1590"]
[Annotator "NA RC COMBH"]
[PlyCount "51"]
[EventDate "2022.07.18"]
[EventType "swiss"]
[EventCountry "SUI"]
[SourceTitle "playchess.com"]
[Source "ChessBase"]
[SourceQuality "1"]
[TimeControl "5400+30"]

1. e4 {[%emt 0:00:20]} e5 {[%emt 0:00:05]} 2. Nf3 {[%emt 0:00:06]} Nc6 {[%emt 0:00:05]} 3. Nc3 {[%emt 0:00:17]} Nf6 {[%emt 0:00:07]} 4. d4 {[%emt 0:00:05]} exd4 {[%emt 0:00:06]} 5. Nxd4 {[%emt 0:00:07]} Bb4 {[%emt 0:00:14]} 6. Nxc6 {[%emt 0:00:16]} bxc6 {[%emt 0:00:45]} 7. Bd3 {[%emt 0:00:12]} O-O {[%emt 0:05:06]} 8. O-O {[%emt 0:00:34]} Re8 {[%emt 0:03:06]} 9. Re1 {[%emt 0:04:08]} d5 {[%emt 0:06:33]} 10. exd5 {[%emt 0:03:33]} cxd5 {[%emt 0:22:28]} 11. Bd2 {[%emt 0:12:44]} Be6 {[%emt 0:12:06]} 12. a3 {[%emt 0:07:31]} Bf8 {[%emt 0:08:51]} 13. h3 {[%emt 0:04:28]} c5 {[%emt 0:05:06]} 14. Bg5 {[%emt 0:06:36]} c4 {[%emt 0:06:06]} 15. Bf1 {[%emt 0:05:20]} Bc5 {[%emt 0:12:36]} 16. Qf3 {[%emt 0:06:22]} d4 {[%emt 0:05:40]} 17. Rad1 {[%emt 0:06:57]} Be7 {[%emt 0:08:01]} 18. Ne4 {[%emt 0:01:21]} Nxe4 {[%emt 0:01:28]} 19. Bxe7 {[%emt 0:00:14]} Rxe7 {[%emt 0:00:30]} 20. Qxe4 {[%emt 0:00:51]} Rd7 {[%emt 0:00:40]} 21. Rd2 {[%emt 0:01:18]} Rb8 {[%emt 0:00:39]} 22. Red1 {[%emt 0:00:55]} Rxb2 {[%emt 0:00:40]} 23. Rxd4 {[%emt 0:00:24]} Rbb7 {[%emt 0:00:27]} 24. Qxb7 {[%emt 0:00:55]} Rxd4 {[%emt 0:00:30]} 25. Rxd4 {[%emt 0:00:09]} Qxd4 {[%emt 0:00:32]} 26. Qb8+ {[%emt 0:00:15]} 1-0

[Event "Swiss Championship U14 2022"]
[Site "Biel"]
[Date "2022.07.20"]
[Round "5.8"]
[White "Gade, Niels Severin"]
[Black "Bruessow, Nina"]
[Result "1/2-1/2"]
[ECO "B88"]
[WhiteElo "1505"]
[BlackElo "1655"]
[Annotator "NA RC COMBH"]
[PlyCount "73"]
[EventDate "2022.07.18"]
[EventType "swiss"]
[EventCountry "SUI"]
[SourceTitle "playchess.com"]
[Source "ChessBase"]
[SourceQuality "1"]
[TimeControl "5400+30"]

1. e4 {[%emt 0:00:07]} c5 {[%emt 0:00:05]} 2. Nf3 {[%emt 0:00:01]} d6 {[%emt 0:00:10]} 3. d4 {[%emt 0:00:07]} cxd4 {[%emt 0:00:09]} 4. Nxd4 {[%emt 0:00:05]} Nf6 {[%emt 0:00:11]} 5. Nc3 {[%emt 0:00:05]} a6 {[%emt 0:00:12]} 6. Be3 {[%emt 0:00:06]} e6 {[%emt 0:00:09]} 7. a4 {[%emt 0:01:07]} Be7 {[%emt 0:00:12]} 8. Bc4 {[%emt 0:00:02]} O-O {[%emt 0:00:17]} 9. O-O {[%emt 0:00:18]} Qc7 {[%emt 0:04:45]} 10. Bb3 {[%emt 0:04:56]} Nc6 {[%emt 0:06:31]} 11. f4 {[%emt 0:11:10]} Rb8 {[%emt 0:06:07]} 12. h3 {[%emt 0:04:21]} Nxd4 {[%emt 0:00:00]} 13. Bxd4 {[%emt 0:01:24]} e5 {[%emt 0:00:00]} 14. fxe5 {[%emt 0:03:04]} dxe5 {[%emt 0:00:00]} 15. Be3 {[%emt 0:01:18]} Bc5 {[%emt 0:01:13]} 16. Qf3 {[%emt 0:02:01]} Qb6 {[%emt 0:05:41]} 17. Bxc5 {[%emt 0:01:19]} Qxc5+ {[%emt 0:00:09]} 18. Kh1 {[%emt 0:01:52]} Qe7 {[%emt 0:04:09]} 19. Rf2 {[%emt 0:04:45]} Be6 {[%emt 0:01:38]} 20. Nd5 {[%emt 0:01:13]} Bxd5 {[%emt 0:01:23]} 21. exd5 {[%emt 0:02:13]} b5 {[%emt 0:03:21]} 22. axb5 {[%emt 0:01:11]} axb5 {[%emt 0:00:24]} 23. Ra6 {[%emt 0:01:43]} Ra8 {[%emt 0:07:48]} 24. d6 {[%emt 0:01:52]} Qd8 {[%emt 0:00:34]} 25. Rxa8 {[%emt 0:03:25]} Qxa8 {[%emt 0:03:10]} 26. Qxa8 {[%emt 0:00:00]} Rxa8 {[%emt 0:00:07]} 27. Rf5 {[%emt 0:07:08]} e4 {[%emt 0:11:38]} 28. Rxb5 {[%emt 0:05:01]} h6 {[%emt 0:05:59]} 29. Re5 {[%emt 0:04:30]} Ra1+ {[%emt 0:05:40]} 30. Kh2 {[%emt 0:00:00]} Rd1 {[%emt 0:02:38]} 31. Re7 {[%emt 0:00:00]} Rxd6 {[%emt 0:00:00]} 32. Rxf7 {[%emt 0:00:00]} Kh7 {[%emt 0:00:05]} 33. Re7 {[%emt 0:02:02]} Rd2 {[%emt 0:04:43]} 34. Ba4 {[%emt 0:12:48]} Re2 {[%emt 0:03:30]} 35. b4 {[%emt 0:00:00]} Nd5 {[%emt 0:04:37]} 36. Re5 {[%emt 0:05:11]} Nxb4 {[%emt 0:00:40]} 37. Bd7 {[%emt 0:04:44]} 1/2-1/2

[Event "Swiss Championship U14 2022"]
[Site "Biel"]
[Date "2022.07.20"]
[Round "6.1"]
[White "Mattenberger, Matthias"]
[Black "Malli, Suvirr"]
[Result "1/2-1/2"]
[ECO "D52"]
[WhiteElo "2005"]
[BlackElo "1957"]
[Annotator "TA"]
[PlyCount "131"]
[EventDate "2022.07.18"]
[EventType "swiss"]
[EventCountry "SUI"]
[SourceTitle "playchess.com"]
[Source "ChessBase"]
[SourceQuality "1"]
[TimeControl "5400+30"]

{[%evp 14,131,48,28,36,41,29,27,22,29,35,27,39,0,10,8,29,0,20,26,29,26,47,35,47,44,56,14,22,18,41,22,25,0,4,5,6,6,6,3,6,3,66,8,28,18,20,18,15,12,14,0,0,0,0,0,30,0,0,0,0,0,0,0,0,0,0,0,0,0,0,0,0,0,0,0,0,0,0,0,0,-33,-33,-29977,-33,-59,0,0,0,-29969,0,-66,0,0,0,0,0,0,0,0,0,0,0,0,0,0,0,0,0,0,0,0,0,0,0,0,0,0,0,0]} 1. d4 {[%emt 0:00:03]} d5 {[%emt 0:02:29]} 2. c4 {[%emt 0:00:13]} c6 {[%emt 0:00:16]} 3. Nc3 {[%emt 0:00:08]} Nf6 {[%emt 0:00:07]} 4. Nf3 {[%emt 0:00:10]} e6 {[%emt 0:00:07]} 5. Bg5 {[%emt 0:00:04]} Nbd7 {[%emt 0:00:22]} 6. e3 {[%emt 0:00:06]} Qa5 {[%emt 0:00:06]} 7. cxd5 {[%emt 0:00:04]} Nxd5 {[%emt 0:00:54]} 8. Qd2 {[%emt 0:00:07] 8.Rc1 is the hot move.} f6 {[%emt 0:00:17] D52: Queen's Gambit Declined: Cambridge Springs Variation.} 9. Bh4 {[%emt 0:00:25]} Bb4 {[%emt 0:00:22][%cal Rd5c3]} 10. Rc1 {[%emt 0:00:15]} Nxc3 {[%emt 0:00:25] White has an edge.} 11. bxc3 {[%emt 0:00:07]} Ba3 {[%emt 0:00:11]} 12. Rb1 {[%emt 0:00:09]} Nb6 $1 {[%emt 0:00:29] [#]} 13. c4 $146 {[%emt 0:06:38]} ({Predecessor:} 13. Bd3 Bd7 14. O-O c5 15. Bg3 Rc8 16. Be4 Bc6 17. Bxc6+ bxc6 18. Qc2 O-O 19. Nd2 cxd4 20. cxd4 {½-½ (29) Ludwig,D (2479)-Garcia,G (2393) Rockville 2013}) 13... Qxd2+ {[%emt 0:01:32]} 14. Nxd2 {[%emt 0:02:06] Threatens to win with c5.} c5 {[%emt 0:03:57]} 15. f3 {[%emt 0:09:27]} O-O {[%emt 0:14:24]} 16. Ne4 {[%emt 0:11:36]} cxd4 {[%emt 0:02:48]} 17. exd4 {[%emt 0:01:17]} Be7 {[%emt 0:10:58]} 18. Be2 {[%emt 0:14:06]} Rd8 {[%emt 0:09:19]} 19. Bf2 $1 {[%emt 0:01:50]} Nd7 {[%emt 0:05:46]} 20. O-O {[%emt 0:15:34]} b6 {[%emt 0:05:42]} 21. a4 {[%emt 0:06:12]} Ba6 {[%emt 0:01:30]} 22. Nc3 {[%emt 0:00:24]} e5 {[%emt 0:03:35]} 23. Nb5 {[%emt 0:08:59] [#] Black must now prevent Nc7.} Bxb5 {[%emt 0:01:25]} 24. axb5 {[%emt 0:00:50]} exd4 {[%emt 0:00:56]} 25. Bxd4 {[%emt 0:01:19]} Nc5 {[%emt 0:05:51]} 26. Rfd1 {[%emt 0:03:20]} Ne6 {[%emt 0:05:05]} 27. Be3 {[%emt 0:00:22]} Bd6 {[%emt 0:00:58]} (27... Bc5 $11 28. Bxc5 Rxd1+ 29. Bxd1 Nxc5) 28. g3 {[%emt 0:01:24]} (28. Ra1 $14) 28... Be5 {[%emt 0:04:39]} 29. Kf2 {[%emt 0:01:41]} Bd4 {[%emt 0:03:25]} 30. f4 {[%emt 0:03:19]} Bxe3+ {[%emt 0:06:06]} 31. Kxe3 {[%emt 0:00:26]} Re8 {[%emt 0:07:32][%cal Oe6f4]} 32. Bf3 {[%emt 0:03:30]} Ng5+ {[%emt 0:00:26]} 33. Kf2 {[%emt 0:00:33]} Nxf3 {[%emt 0:00:04]} 34. Kxf3 $11 {[%emt 0:00:07][%mdl 4096] Endgame KRR-KRR} Rec8 {[%emt 0:00:09]} 35. Rd4 {[%emt 0:01:18]} Rc7 {[%emt 0:00:37]} 36. f5 {[%emt 0:02:45]} Rac8 {[%emt 0:00:19]} 37. Rbd1 {[%emt 0:00:31]} Rxc4 {[%emt 0:00:42]} 38. Rd8+ Rxd8 {[%emt 0:00:06]} 39. Rxd8+ {[%emt 0:00:22] KR-KR} Kf7 {[%emt 0:00:07]} 40. Rd7+ {[%emt 0:00:11]} Kf8 {[%emt 0:00:10]} 41. Rxa7 {[%emt 0:00:17]} Rc5 {[%emt 0:00:13][%csl LRb5,LRf5]} 42. Ra8+ {[%emt 0:00:15]} Ke7 {[%emt 0:00:33]} 43. Ra7+ {[%emt 0:00:13]} Kd6 {[%emt 0:00:39]} 44. Rxg7 {[%emt 0:02:57] aiming for g4.} Rxf5+ {[%emt 0:00:13]} 45. Ke4 {[%emt 0:00:07]} Re5+ {[%emt 0:00:16]} 46. Kd4 {[%emt 0:00:12]} h5 {[%emt 0:00:19]} 47. Rg6 {[%emt 0:02:07]} (47. Kc4 $5 {[%cal Rg7b7]}) 47... Ke6 {[%emt 0:00:19] ( -> ...Kf7)} 48. Kc4 $2 {[%emt 0:00:12][%mdl 8192] [#]} (48. Rg7 $15) 48... Re4+ $2 {[%emt 0:01:33]} (48... Kf7 49. Rh6 Kg7 50. Rxh5 Rxh5 51. Kd4 Kg6 52. Ke3 Rxh2 53. Kd3 Kf5 54. Kd4 Rd2+ 55. Ke3 Rd7 56. Kf3 Re7 57. g4+ Kg5 58. Kg3 Re3+ 59. Kf2 Kf4 60. Kg2 Kxg4 61. Kf2 Re5 62. Kg2 Rf5 63. Kh1 Kh3 64. Kg1 Kg3 65. Kh1 Rf1#) 49. Kc3 {[%emt 0:00:32]} Re3+ {[%emt 0:00:16]} ({Black should play} 49... Kf7 $1 $15 50. Rh6 Re5 51. Rh7+ Kg6) 50. Kd4 {[%emt 0:00:32]} Re5 {[%emt 0:00:09][%mdl 8192]} (50... Re2 $11) 51. Kc4 {[%emt 0:00:06]} Re4+ $2 {[%emt 0:01:46]} (51... Rc5+ {mates} 52. Kb3 Kf7 53. Rh6 Kg7 54. Rxh5 Rxh5 55. h4 Rxb5+ 56. Ka4 Rc5 57. g4 Rc4+ 58. Kb3 Rxg4 59. h5 Rd4 60. Kc3 Rd6 61. Kb4 f5 62. Kc4 f4 63. Kb5 f3 64. h6+ Kxh6 65. Ka6 f2 66. Kb7 f1=Q 67. Kc7 Qf6 68. Kb7 Qf7+ 69. Ka6 Rc6 70. Kb5 Qc4#) 52. Kc3 $15 {[%emt 0:00:09]} h4 {[%emt 0:00:18]} ({Better is} 52... Kf7 $1 $15 53. Rh6 Re5 54. Rh7+ Kg6) 53. gxh4 $11 {[%emt 0:01:32] The position is equal.} Rxh4 {[%emt 0:00:08]} 54. Rg2 {[%emt 0:00:05]} Kd5 {[%emt 0:01:23]} 55. Rf2 {[%emt 0:01:02]} Rh5 {[%emt 0:00:43]} 56. Rxf6 {[%emt 0:00:28]} Kc5 {[%emt 0:00:02]} 57. h4 {[%emt 0:00:48]} Kxb5 {[%emt 0:01:22]} 58. Rf4 {[%emt 0:00:08]} Kc5 {[%emt 0:01:06]} 59. Rg4 {[%emt 0:00:12]} b5 {[%emt 0:00:48]} 60. Kb3 {[%emt 0:01:41]} Rf5 {[%emt 0:00:53]} 61. Rg5 {[%emt 0:00:28]} Rxg5 {[%emt 0:00:21]} 62. hxg5 {[%emt 0:00:04] g6 would kill now.} Kd5 {[%emt 0:00:10]} 63. g6 {[%emt 0:00:06] White wants to mate with g7.} Ke6 {[%emt 0:00:03]} 64. g7 {[%emt 0:00:05]} Kf7 {[%emt 0:00:02]} 65. Kb4 {[%emt 0:00:05]} Kxg7 {[%emt 0:00:07]} 66. Kxb5 {[%emt 0:00:04] Weighted Error Value: White=0.25 (precise) /Black=0.35} 1/2-1/2

[Event "Swiss Championship U14 2022"]
[Site "Biel"]
[Date "2022.07.20"]
[Round "6.2"]
[White "Arsenie, Cristian Marc"]
[Black "Breyer, Philippe"]
[Result "1/2-1/2"]
[ECO "B23"]
[WhiteElo "2001"]
[BlackElo "1743"]
[Annotator "TA"]
[PlyCount "61"]
[EventDate "2022.07.18"]
[EventType "swiss"]
[EventCountry "SUI"]
[SourceTitle "playchess.com"]
[Source "ChessBase"]
[SourceQuality "1"]
[TimeControl "5400+30"]

{[%evp 9,61,-6,53,59,72,46,59,56,59,62,110,106,122,120,141,81,200,202,200,212,404,411,389,61,66,56,61,64,52,62,54,13,19,10,30,27,27,33,35,23,68,47,70,68,64,54,66,13,13,-3,-3,-3,0,0]} 1. e4 {[%emt 0:00:01]} c5 {[%emt 0:00:04]} 2. Nc3 {[%emt 0:00:07]} Nc6 {[%emt 0:00:12]} 3. Bb5 {[%emt 0:00:20]} e5 {[%emt 0:00:16]} 4. Bxc6 {[%emt 0:14:27]} bxc6 {[%emt 0:04:39]} 5. d3 {[%emt 0:00:46]} g6 {[%emt 0:00:19]} (5... Be7 $11) 6. f4 $1 $14 {[%emt 0:00:26] B23: Closed Sicilian: Lines without g3.} exf4 {[%emt 0:01:22]} 7. Bxf4 {[%emt 0:00:27]} d6 {[%emt 0:00:33]} 8. Nf3 {[%emt 0:01:54] White is slightly better.} Bg7 {[%emt 0:00:52]} 9. O-O {[%emt 0:03:04]} Ne7 {[%emt 0:01:16]} (9... Nf6 $14 {deserves consideration.}) 10. Qe1 $16 {[%emt 0:04:02]} O-O {[%emt 0:01:59][%cal Oc5c4]} 11. Qg3 {[%emt 0:02:51]} d5 {[%emt 0:00:40]} 12. Bd6 {[%emt 0:01:55] [#]} (12. Rae1 $142) 12... f5 $146 {[%emt 0:03:26]} (12... c4 $16 {is a better defense.}) ({Predecessor:} 12... c4 13. exd5 Nf5 14. Bc7 Nxg3 15. Bxd8 Nxf1 16. Bg5 cxd5 17. Nxd5 cxd3 18. cxd3 f6 {0-1 (33) Klementowski,D (1692)-Grela,K (1875) Suchedniow 2012}) 13. Bxc5 $18 {[%emt 0:02:18]} ({Don't play} 13. exd5 $6 f4 14. Bxf4 Nf5 $14) 13... fxe4 {[%emt 0:14:20]} 14. dxe4 {[%emt 0:06:49]} Bxc3 $2 {[%emt 0:01:17] [#]} (14... Ba6 {keeps fighting.}) 15. bxc3 {[%emt 0:00:29]} dxe4 {[%emt 0:00:06]} 16. Qg5 $2 {[%emt 0:05:29]} (16. Rad1 $18 Qe8 17. Ng5 Rxf1+ 18. Rxf1) 16... Rf5 $14 {[%emt 0:12:22]} 17. Rad1 $1 {[%emt 0:08:18]} ({But not} 17. Qxe7 Qxe7 18. Bxe7 exf3 $11) 17... Qc7 {[%emt 0:17:56]} 18. Qxe7 {[%emt 0:10:06] 0x0.0023600e2d0bdp-1022s more active pieces.} Qxe7 {[%emt 0:01:17]} 19. Bxe7 {[%emt 0:00:02][%cal Of3e5] [#] Black must now prevent Ne5!} exf3 {[%emt 0:01:48]} 20. Rxf3 {[%emt 0:00:50]} Rxf3 {[%emt 0:01:52]} 21. gxf3 {[%emt 0:00:01][%mdl 4096] Endgame KRB-KRB} Kf7 {[%emt 0:02:11]} 22. Bc5 {[%emt 0:00:19]} Be6 {[%emt 0:02:47]} 23. a3 {[%emt 0:01:56]} a6 {[%emt 0:02:31]} 24. Rb1 {[%emt 0:03:02]} Bd5 {[%emt 0:01:44]} 25. Kf2 {[%emt 0:03:23]} Ke6 {[%emt 0:02:46]} 26. Rb6 {[%emt 0:02:10]} h5 {[%emt 0:02:43]} 27. Rb7 {[%emt 0:07:12]} Kf5 {[%emt 0:04:31]} 28. Kg3 {[%emt 0:03:52]} (28. Rb4 $14) 28... Re8 $11 {[%emt 0:07:49] The position is equal.} 29. Re7 {[%emt 0:03:32]} Rxe7 {[%emt 0:00:17]} 30. Bxe7 {[%emt 0:00:04]} Ba2 {[%emt 0:00:53]} 31. Kf2 {[%emt 0:00:10] Weighted Error Value: White=0.34/Black=0.21 (precise)} 1/2-1/2

[Event "Swiss Championship U14 2022"]
[Site "Biel"]
[Date "2022.07.20"]
[Round "6.3"]
[White "Haas, Anthony"]
[Black "Gut, Raphael"]
[Result "0-1"]
[ECO "D85"]
[WhiteElo "1638"]
[BlackElo "1898"]
[Annotator "NA RC COMBH"]
[PlyCount "70"]
[EventDate "2022.07.18"]
[EventType "swiss"]
[EventCountry "SUI"]
[SourceTitle "playchess.com"]
[Source "ChessBase"]
[SourceQuality "1"]
[TimeControl "5400+30"]

1. d4 {[%emt 0:00:04]} Nf6 {[%emt 0:00:04]} 2. c4 {[%emt 0:00:02]} g6 {[%emt 0:00:05]} 3. Nc3 {[%emt 0:00:11]} d5 {[%emt 0:00:03]} 4. cxd5 {[%emt 0:00:04]} Nxd5 {[%emt 0:00:05]} 5. e4 {[%emt 0:00:03]} Nxc3 {[%emt 0:00:04]} 6. bxc3 {[%emt 0:00:03]} Bg7 {[%emt 0:00:05]} 7. Be3 {[%emt 0:00:05]} c5 {[%emt 0:00:02]} 8. Rc1 {[%emt 0:00:05]} Qa5 {[%emt 0:00:03]} 9. Qd2 {[%emt 0:00:07]} O-O {[%emt 0:00:10]} 10. Nf3 {[%emt 0:00:18]} Rd8 {[%emt 0:00:13]} 11. d5 {[%emt 0:02:42]} e6 {[%emt 0:01:41]} 12. c4 {[%emt 0:00:28]} Qxd2+ {[%emt 0:01:25]} 13. Nxd2 {[%emt 0:01:18]} b6 {[%emt 0:00:25]} 14. Nb3 {[%emt 0:02:25]} exd5 {[%emt 0:01:00]} 15. cxd5 {[%emt 0:01:14]} Ba6 {[%emt 0:04:45]} 16. Bxa6 {[%emt 0:22:02]} Nxa6 {[%emt 0:00:16]} 17. Kd2 {[%emt 0:00:39]} Rac8 {[%emt 0:05:22]} 18. a3 {[%emt 0:23:03]} f5 {[%emt 0:19:46]} 19. f3 {[%emt 0:00:44]} fxe4 {[%emt 0:02:15]} 20. fxe4 {[%emt 0:00:28]} Re8 {[%emt 0:00:05]} 21. Kd3 {[%emt 0:04:32]} Bb2 {[%emt 0:02:11]} 22. Rb1 {[%emt 0:01:46]} Bxa3 {[%emt 0:10:41]} 23. Ra1 {[%emt 0:01:56]} Nb4+ {[%emt 0:00:06]} 24. Kd2 {[%emt 0:00:14]} Rxe4 {[%emt 0:00:19]} 25. Rxa3 {[%emt 0:00:45]} Rxe3 {[%emt 0:00:06]} 26. Rc1 {[%emt 0:03:09]} Rd3+ {[%emt 0:02:20]} 27. Ke2 {[%emt 0:00:39]} c4 {[%emt 0:01:47]} 28. d6 {[%emt 0:01:18]} Re8+ {[%emt 0:00:11]} 29. Kf2 {[%emt 0:00:27]} Rxb3 {[%emt 0:00:50]} 30. Rxb3 {[%emt 0:03:17]} cxb3 {[%emt 0:00:12]} 31. d7 {[%emt 0:00:28]} Rf8+ {[%emt 0:00:21]} 32. Kg3 {[%emt 0:00:12]} b2 {[%emt 0:00:09]} 33. Rc8 {[%emt 0:00:20]} Nc6 {[%emt 0:00:13]} 34. Rxc6 {[%emt 0:01:42]} b1=Q {[%emt 0:00:08]} 35. Rc8 {[%emt 0:00:04]} Qd3+ {[%emt 0:00:07]} 0-1